bitfinex/quotes_SOLUSD_20220211
["timestamp","ask_amount","ask_price","bid_price","bid_amount"]
[1644593105518,14.0174,107.09,107.04,47.80717709]
[1644593105718,14.0174,107.09,107.04,44.15149709]
[1644593105918,47.71244312,107.1,107.04,44.15149709]
[1644593106619,47.71244312,107.1,107.03,4.694]
[1644593106819,47.71244312,107.1,107.03,0.024]
[1644593107021,20.0174,107.09,107.02,0.024]
[1644593107219,21.7304,107.09,107.02,0.024]
[1644593107422,21.7304,107.09,107.01,25.2168]
[1644593107619,35.41818061,107.08,107.02,42.46548305]
[1644593108020,7.713,107.09,107.02,42.46548305]
[1644593108219,6.0,107.09,107.02,47.13548305]
[1644593108742,14.019,107.08,107.02,47.13548305]
[1644593108920,14.019,107.08,107.03,0.024]
[1644593109120,58.15826976,107.08,107.02,42.46548305]
[1644593110125,14.019,107.08,107.02,42.46548305]
[1644593111125,57.7611649,107.08,107.02,42.46548305]
[1644593111731,57.7611649,107.08,107.02,55.94548305]
[1644593112232,14.019,107.08,107.02,55.94548305]
[1644593112435,14.0168,107.09,107.02,70.21228305]
[1644593112635,14.0168,107.09,107.03,0.024]
[1644593112934,14.0168,107.09,107.03,13.48]
[1644593113336,14.0168,107.09,107.04,39.41969157]
[1644593113538,41.57079927,107.08,107.04,44.08969157]
[1644593113840,41.57079927,107.08,107.04,4.67]
[1644593114036,41.57079927,107.08,107.02,18.174]
[1644593114339,55.58889927,107.08,107.02,18.174]
[1644593114536,55.58889927,107.08,107.02,13.754]
[1644593114745,55.58889927,107.08,107.03,43.17790407]
[1644593115137,14.0181,107.08,107.03,43.17790407]
[1644593115437,14.0181,107.08,107.02,0.024]
[1644593115637,1.714,107.07,107.02,0.024]
[1644593115839,14.0221,107.06,107.0,0.024]
[1644593116252,39.80854822,107.05,107.0,38.89543467]
[1644593116654,6.0,107.07,107.0,38.89543467]
[1644593116655,1.712,107.06,107.0,38.89543467]
[1644593116854,7.711,107.07,107.0,38.89543467]
[1644593117054,1.71,107.1,107.0,40.46780463]
[1644593117254,6.0,107.09,107.01,4.695]
[1644593117458,25.5456,107.11,107.01,26.03556996]
[1644593117755,44.35387742,107.1,107.02,54.94790572]
[1644593117954,15.7234,107.09,107.03,0.024]
[1644593118160,21.7234,107.09,107.02,0.024]
[1644593118958,48.59923319,107.08,107.02,0.024]
[1644593119156,14.0201,107.07,107.02,0.024]
[1644593119455,47.70791169,107.06,107.01,43.44987584]
[1644593119755,47.70791169,107.06,107.0,39.20036996]
[1644593119958,47.70791169,107.06,107.01,1.32236996]
[1644593120758,61.72831169,107.06,107.01,37.24394422]
[1644593121158,61.72831169,107.06,107.01,1.32236996]
[1644593121559,52.7337,107.09,107.01,5.99336996]
[1644593121761,1.714,107.11,107.02,6.0]
[1644593121957,14.0154,107.1,107.04,15.33646996]
[1644593122162,24.5595,107.13,107.05,4.668]
[1644593122357,24.5595,107.13,107.05,5.99036996]
[1644593122557,46.93751131,107.12,107.05,4.668]
[1644593122757,46.93751131,107.12,107.04,46.16481279]
[1644593123759,60.95081131,107.12,107.04,60.18031279]
[1644593123957,59.25781131,107.12,107.05,4.668]
[1644593124160,59.25781131,107.12,107.06,36.735518]
[1644593124360,1.714,107.11,107.06,36.735518]
[1644593124560,42.54291211,107.1,107.06,36.735518]
[1644593124962,56.55801211,107.1,107.04,15.33776996]
[1644593125175,56.55801211,107.1,107.04,1.32236996]
[1644593125361,6.0,107.09,107.03,49.40166996]
[1644593125561,6.0,107.09,107.03,1.32236996]
[1644593125962,39.82826042,107.08,107.03,1.32236996]
[1644593126162,39.82826042,107.08,107.02,55.92109607]
[1644593126765,53.84756042,107.08,107.02,49.92109607]
[1644593127561,24.0324,107.12,107.02,49.92109607]
[1644593127763,14.0163,107.09,107.03,15.33786996]
[1644593128064,14.0163,107.09,107.03,28.81786996]
[1644593128262,1.686,107.11,107.03,28.81786996]
[1644593128461,35.25143895,107.1,107.04,41.11673676]
[1644593128661,35.25143895,107.1,107.04,42.43910672]
[1644593128862,35.25143895,107.1,107.04,42.68910672]
[1644593129369,35.25143895,107.1,107.04,41.36673676]
[1644593129765,49.26633895,107.1,107.04,55.38193676]
[1644593130964,49.26633895,107.1,107.03,28.81896996]
[1644593131165,1.714,107.09,107.03,1.32236996]
[1644593131365,14.0193,107.08,107.02,1.32236996]
[1644593131970,45.86245615,107.07,107.01,38.14857293]
[1644593132165,47.60445615,107.07,107.01,1.32236996]
[1644593133567,47.60445615,107.07,107.01,38.28132141]
[1644593133765,14.0213,107.06,107.01,38.28132141]
[1644593133966,46.27284857,107.05,107.01,38.28132141]
[1644593134165,46.27284857,107.05,107.01,1.32236996]
[1644593134369,46.27284857,107.05,107.0,15.36676996]
[1644593134567,1.742,107.07,107.0,15.36676996]
[1644593134767,1.714,107.1,107.01,13.05466791]
[1644593134967,14.0161,107.09,107.02,28.81966996]
[1644593135167,14.0161,107.09,107.03,4.694]
[1644593135370,14.0161,107.09,107.03,5.99236996]
[1644593135570,43.75065321,107.08,107.03,54.36797958]
[1644593135771,43.75065321,107.08,107.03,5.99236996]
[1644593135970,43.75065321,107.08,107.03,4.67]
[1644593136369,14.0161,107.09,107.03,4.67]
[1644593136568,25.87870783,107.13,107.04,13.48]
[1644593136769,1.31920783,107.13,107.04,19.73]
[1644593137071,27.20080783,107.15,107.04,47.12813787]
[1644593137468,42.67030272,107.14,107.05,37.4947989]
[1644593137670,1.31920783,107.15,107.06,10.668]
[1644593137868,3.00520783,107.17,107.07,13.48]
[1644593138068,1.31920783,107.17,107.08,4.667]
[1644593138268,26.6629,107.18,107.08,24.397]
[1644593138269,52.09720783,107.18,107.08,24.397]
[1644593138472,3.06220783,107.18,107.08,28.10303787]
[1644593138669,43.18715377,107.17,107.09,37.31812516]
[1644593138873,15.7485,107.18,107.1,18.147]
[1644593139071,15.7485,107.18,107.1,24.147]
[1644593139477,15.7485,107.18,107.1,13.48]
[1644593139676,18.13216791,107.18,107.08,13.48]
[1644593139872,6.0,107.17,107.07,22.6086]
[1644593140284,14.0118,107.15,107.06,36.6667]
[1644593140474,45.4617919,107.14,107.06,23.1867]
[1644593140672,45.4617919,107.14,107.07,46.49974384]
[1644593142675,14.0113,107.13,107.07,46.49974384]
[1644593142873,48.70427768,107.12,107.07,46.49974384]
[1644593143274,48.70427768,107.12,107.06,37.1985]
[1644593143476,48.70427768,107.12,107.05,1.32236996]
[1644593143674,1.684,107.11,107.03,52.66756996]
[1644593143877,14.0158,107.1,107.03,66.68336996]
[1644593144076,14.0158,107.1,107.03,65.361]
[1644593144276,47.2626276,107.09,107.03,105.172365]
[1644593144478,1.713,107.08,107.03,46.6542]
[1644593144677,47.2626276,107.09,107.03,46.6542]
[1644593145477,47.2626276,107.09,107.03,92.25253878]
[1644593145678,61.2798276,107.09,107.03,92.25253878]
[1644593146177,61.2798276,107.09,107.03,46.6542]
[1644593147580,61.2798276,107.09,107.02,13.504]
[1644593147784,14.0219,107.07,107.02,0.024]
[1644593148079,14.0219,107.07,106.99,18.691]
[1644593148080,6.0,107.08,107.0,0.024]
[1644593148680,41.00761416,107.07,107.0,45.33499589]
[1644593148885,42.66461416,107.07,107.0,45.33499589]
[1644593149080,6.0,107.06,107.0,45.33499589]
[1644593149282,58.93212581,107.05,107.0,45.33499589]
[1644593150505,14.0238,107.05,107.0,45.33499589]
[1644593150906,14.0238,107.05,107.0,0.024]
[1644593151106,14.0238,107.05,106.99,1.32236996]
[1644593151304,14.0238,107.05,106.98,28.3685]
[1644593151305,15.7088,107.05,106.98,29.69086996]
[1644593151908,14.0238,107.05,106.99,37.8147286]
[1644593152105,14.0238,107.05,106.99,39.13709856]
[1644593152306,14.0207,107.06,106.99,39.38709856]
[1644593152509,14.0207,107.06,107.0,0.024]
[1644593152704,14.0207,107.06,107.01,4.671]
[1644593153206,14.0207,107.06,107.01,40.00694749]
[1644593153407,47.97903083,107.05,107.0,4.695]
[1644593153608,62.00143083,107.05,107.0,4.695]
[1644593153807,62.00143083,107.05,107.0,0.024]
[1644593154007,62.00143083,107.05,106.98,25.01986996]
[1644593154406,62.00143083,107.05,106.99,34.88001557]
[1644593154606,6.0,107.04,106.99,34.88001557]
[1644593154807,14.0239,107.04,106.99,34.88001557]
[1644593155020,20.0239,107.04,106.99,34.88001557]
[1644593155208,43.32280087,107.03,106.99,34.88001557]
[1644593156008,57.34750087,107.03,106.98,28.3455]
[1644593156511,57.34750087,107.03,106.98,4.672]
[1644593157008,57.34750087,107.03,106.98,39.3439993]
[1644593158713,14.0247,107.03,106.98,39.3439993]
[1644593159114,20.0235,107.04,106.98,39.3439993]
[1644593159516,14.0235,107.04,106.98,54.14636926]
[1644593159715,37.87307849,107.07,106.98,56.78003717]
[1644593159915,37.87307849,107.07,106.99,1.32236996]
[1644593160115,51.89337849,107.07,107.0,56.87090518]
[1644593160317,51.89337849,107.07,107.0,57.14490518]
[1644593160517,51.89337849,107.07,107.0,58.46727514]
[1644593160920,14.0203,107.07,107.0,57.14490518]
[1644593161119,14.0203,107.07,107.0,71.94727514]
[1644593161321,1.712,107.1,107.0,71.94727514]
[1644593161322,14.0182,107.08,107.0,71.94727514]
[1644593161519,14.0182,107.08,107.01,0.024]
[1644593161717,14.0182,107.08,107.01,14.0181]
[1644593161920,14.0182,107.08,107.01,14.2921]
[1644593162123,14.0182,107.08,107.02,42.77975318]
[1644593162417,14.0182,107.08,107.02,47.44975318]
[1644593162620,42.9952925,107.07,107.02,47.44975318]
[1644593162817,42.9952925,107.07,107.02,42.77975318]
[1644593163423,42.9952925,107.07,107.01,14.2681]
[1644593163619,57.0146925,107.07,107.0,1.34636996]
[1644593163820,1.716,107.06,107.0,1.34636996]
[1644593164019,1.716,107.06,107.0,0.024]
[1644593164521,42.53731261,107.05,107.0,43.17502638]
[1644593164721,1.718,107.09,107.0,43.17502638]
[1644593164919,14.0214,107.07,107.01,0.024]
[1644593165127,14.0214,107.07,107.0,43.17502638]
[1644593165727,60.39773456,107.07,107.0,43.17502638]
[1644593166430,14.0214,107.07,107.0,57.19532638]
[1644593166626,14.0214,107.07,107.0,71.99769634]
[1644593167228,14.0214,107.07,107.01,2.38366791]
[1644593167428,14.0214,107.07,107.02,45.021826]
[1644593167830,14.0214,107.07,107.02,45.271826]
[1644593168128,14.0214,107.07,107.02,45.021826]
[1644593168330,49.32695479,107.06,107.0,14.82636996]
[1644593168535,51.03895479,107.06,107.01,0.024]
[1644593168735,51.03895479,107.06,106.99,0.024]
[1644593169135,6.0,107.05,106.99,0.024]
[1644593169335,6.0,107.05,106.96,65.1354]
[1644593169336,6.0,107.05,106.98,40.55341845]
[1644593169536,38.15215856,107.04,106.98,40.55341845]
[1644593169736,38.15215856,107.04,106.98,40.52941845]
[1644593169935,38.15215856,107.04,106.98,45.20141845]
[1644593170337,38.15215856,107.04,106.98,5.99436996]
[1644593170738,52.17625856,107.04,106.98,5.99436996]
[1644593171237,52.17625856,107.04,106.99,37.24930823]
[1644593171444,52.17625856,107.04,106.98,6.01836996]
[1644593171645,52.17625856,107.04,106.99,1.32236996]
[1644593172144,1.714,107.03,106.99,1.32236996]
[1644593172353,14.0256,107.02,106.99,1.32236996]
[1644593172645,1.714,107.03,106.98,4.672]
[1644593172646,48.66411891,107.01,106.98,4.672]
[1644593173046,6.0,107.02,106.98,4.672]
[1644593173246,46.7523,107.05,106.98,4.672]
[1644593173444,52.7523,107.05,106.98,4.696]
[1644593173647,52.7523,107.05,106.98,8.40203787]
[1644593174045,37.66371496,107.04,106.98,53.12848205]
[1644593174249,37.66371496,107.04,106.98,3.70603787]
[1644593174445,15.7388,107.03,106.98,3.70603787]
[1644593174646,14.0248,107.03,106.98,3.70603787]
[1644593175051,6.0,107.05,106.98,17.43603787]
[1644593175248,73.0187,107.07,106.99,5.99436996]
[1644593175447,26.2756,107.07,107.0,1.32236996]
[1644593175648,14.0203,107.06,107.0,3.73003787]
[1644593175847,14.0203,107.06,107.0,1.34636996]
[1644593175848,40.89990083,107.05,107.0,1.34636996]
[1644593176048,40.89990083,107.05,107.0,0.024]
[1644593176270,40.89990083,107.05,107.0,47.24184405]
[1644593176470,40.89990083,107.05,106.99,1.34636996]
[1644593177069,1.699,107.04,106.99,1.34636996]
[1644593177470,35.61943085,107.03,106.99,1.34636996]
[1644593177670,35.61943085,107.03,106.98,1.32236996]
[1644593178470,14.0255,107.02,106.98,1.32236996]
[1644593179779,1.739,107.06,106.99,42.30567331]
[1644593180072,19.98983979,107.1,106.99,48.30004327]
[1644593180073,1.714,107.08,106.99,48.30004327]
[1644593180270,1.689,107.11,107.01,1.32236996]
[1644593180469,1.689,107.11,107.02,18.15]
[1644593180470,4.88154093,107.11,107.02,18.15]
[1644593180669,6.0,107.1,107.03,1.32236996]
[1644593180870,37.06367163,107.09,107.04,4.67]
[1644593181071,1.31920783,107.14,107.05,38.42656816]
[1644593181269,46.7206,107.12,107.05,38.42656816]
[1644593182070,48.29187201,107.11,107.05,38.42656816]
[1644593182269,54.29187201,107.11,107.04,4.67]
[1644593182469,14.0157,107.1,107.04,4.67]
[1644593183070,1.714,107.09,107.02,18.148]
[1644593183272,1.714,107.09,107.02,13.48]
[1644593183473,40.81047907,107.08,107.02,53.68342611]
[1644593183873,40.81047907,107.08,107.02,57.85342611]
[1644593184077,1.714,107.09,107.02,57.85342611]
[1644593184274,1.714,107.09,107.02,60.23709402]
[1644593184473,1.714,107.09,107.02,61.55946398]
[1644593184873,1.714,107.09,107.03,6.0]
[1644593185073,1.714,107.09,107.04,50.5188311]
[1644593185274,1.714,107.09,107.04,67.16689901]
[1644593185478,1.714,107.09,107.05,21.86366791]
[1644593185776,1.714,107.09,107.06,4.668]
[1644593185974,1.714,107.09,107.07,6.06439994]
[1644593186175,1.714,107.09,107.08,42.32402128]
[1644593186474,1.714,107.09,107.07,6.06439994]
[1644593187477,60.04539579,107.1,107.07,6.06439994]
[1644593187677,14.0151,107.1,107.06,42.07796231]
[1644593187877,14.0151,107.1,107.06,37.40996231]
[1644593188487,14.0151,107.1,107.03,4.668]
[1644593188686,14.0187,107.08,107.02,1.32236996]
[1644593188878,14.0187,107.08,107.0,0.024]
[1644593188879,1.713,107.07,107.0,1.34636996]
[1644593189181,6.0,107.09,107.01,0.024]
[1644593189380,47.48192123,107.08,107.01,37.99921963]
[1644593189578,47.48192123,107.08,107.01,38.02321963]
[1644593190280,14.0198,107.07,107.01,38.02321963]
[1644593190481,14.0198,107.07,107.01,42.66921963]
[1644593191280,62.44998677,107.07,107.01,42.91921963]
[1644593191783,62.44998677,107.07,107.01,56.93781963]
[1644593193082,62.44998677,107.07,107.01,52.26781963]
[1644593194285,14.0198,107.07,107.01,52.26781963]
[1644593194483,14.0178,107.08,107.01,56.93881963]
[1644593194684,14.0178,107.08,107.01,56.96281963]
[1644593194884,14.0178,107.08,107.01,58.28518959]
[1644593195089,14.0178,107.08,107.01,56.96281963]
[1644593195290,51.04098549,107.08,107.01,58.28518959]
[1644593195485,51.04098549,107.08,107.01,56.96281963]
[1644593195686,51.04098549,107.08,107.01,71.76518959]
[1644593195886,51.04098549,107.08,107.01,71.74118959]
[1644593196189,14.0178,107.08,107.01,71.74118959]
[1644593196388,38.519,107.1,107.01,74.1248575]
[1644593196589,38.519,107.1,107.03,14.0152]
[1644593196791,36.805,107.1,107.03,14.0152]
[1644593197188,43.15168517,107.09,107.04,44.75993597]
[1644593197890,57.16808517,107.09,107.03,0.25]
[1644593198491,57.16808517,107.09,107.02,36.4875]
[1644593198691,57.16808517,107.09,107.02,36.7375]
[1644593198891,57.16808517,107.09,107.03,47.17067481]
[1644593199092,14.0164,107.09,107.03,47.17067481]
[1644593199690,14.0164,107.09,107.03,61.18677481]
[1644593200292,15.7304,107.09,107.03,61.18677481]
[1644593200694,15.7304,107.09,107.03,61.43677481]
[1644593200892,15.7304,107.09,107.03,63.82044272]
[1644593201392,14.0164,107.09,107.03,65.85677481]
[1644593202194,46.07491892,107.08,107.03,61.18677481]
[1644593202595,60.09241892,107.08,107.03,47.17067481]
[1644593202794,58.37841892,107.08,107.03,47.17067481]
[1644593203494,14.0175,107.08,107.03,47.17067481]
[1644593203694,14.0175,107.08,107.03,61.18727481]
[1644593203900,14.0162,107.09,107.03,61.18727481]
[1644593204803,24.5029,107.1,107.03,61.18727481]
[1644593205001,48.4301,107.13,107.04,18.15]
[1644593205209,26.6225,107.15,107.06,14.0114]
[1644593205608,14.28444178,107.14,107.06,16.64506791]
[1644593205907,49.69897594,107.13,107.07,41.00217757]
[1644593206108,47.98497594,107.13,107.07,41.00217757]
[1644593206311,1.714,107.12,107.07,41.25217757]
[1644593206810,47.98497594,107.13,107.07,55.26317757]
[1644593207008,24.9085,107.15,107.07,55.26317757]
[1644593208008,45.44375418,107.14,107.07,55.26317757]
[1644593208207,1.714,107.13,107.07,55.26317757]
[1644593208408,15.7254,107.13,107.07,55.01317757]
[1644593208609,15.7254,107.13,107.08,6.0]
[1644593209511,15.7254,107.13,107.07,55.01317757]
[1644593212130,14.0114,107.13,107.07,57.39684548]
[1644593212331,61.16705418,107.14,107.07,57.64684548]
[1644593212531,59.45305418,107.14,107.07,57.64684548]
[1644593213031,59.45305418,107.14,107.07,16.39466791]
[1644593213231,59.45305418,107.14,107.07,14.011]
[1644593213631,1.714,107.13,107.07,14.011]
[1644593213836,14.012,107.12,107.07,14.011]
[1644593218938,14.012,107.12,107.07,18.679]
[1644593219336,14.012,107.12,107.07,4.668]
[1644593219937,14.012,107.12,107.07,42.69123209]
[1644593221446,14.0107,107.13,107.07,56.70313209]
[1644593221645,1.31920783,107.17,107.08,8.38366791]
[1644593221842,1.714,107.18,107.08,32.76553787]
[1644593222043,0.03823015,107.19,107.09,17.18603787]
[1644593222243,0.03823015,107.2,107.1,6.0]
[1644593222441,0.03823015,107.18,107.12,38.88627994]
[1644593222641,0.03823015,107.2,107.13,27.4804]
[1644593222939,55.06154536,107.22,107.13,35.86406791]
[1644593222940,0.03823015,107.21,107.13,35.86406791]
[1644593223140,55.09977551,107.22,107.14,2.38366791]
[1644593223442,14.03773015,107.22,107.15,6.0]
[1644593223643,13.9995,107.22,107.16,4.664]
[1644593224040,14.03653015,107.23,107.16,18.6629]
[1644593224242,15.7133,107.23,107.16,14.2489]
[1644593224440,44.04479247,107.22,107.16,13.9989]
[1644593224644,1.715,107.21,107.13,13.48]
[1644593224947,1.715,107.21,107.12,36.9927]
[1644593225141,0.03823015,107.2,107.13,6.0]
[1644593225342,14.0025,107.2,107.14,14.0019]
[1644593225542,14.0025,107.2,107.15,36.29350756]
[1644593226143,44.08302262,107.22,107.15,36.29350756]
[1644593226345,44.04479247,107.22,107.15,36.29350756]
[1644593227145,15.75253015,107.23,107.15,52.67757547]
[1644593227347,0.03823015,107.23,107.16,13.48]
[1644593227547,1.31920783,107.24,107.16,13.48]
[1644593227548,1.35743798,107.24,107.16,43.9797]
[1644593227747,0.03823015,107.24,107.17,2.38366791]
[1644593227954,0.03823015,107.26,107.18,13.48]
[1644593228146,44.91208362,107.26,107.19,46.35933938]
[1644593228347,44.87385347,107.26,107.2,13.48]
[1644593228946,1.75023015,107.27,107.2,13.48]
[1644593229246,1.712,107.27,107.2,13.48]
[1644593229447,13.9943,107.26,107.2,13.48]
[1644593229748,7.714,107.25,107.2,13.48]
[1644593229948,35.53738109,107.24,107.19,46.35933938]
[1644593230154,1.716,107.23,107.16,13.48]
[1644593230350,60.22188109,107.24,107.16,18.143]
[1644593230551,13.9985,107.23,107.16,18.143]
[1644593230751,1.723,107.22,107.16,18.143]
[1644593231449,1.723,107.22,107.13,34.81504197]
[1644593231652,14.0007,107.21,107.13,34.81504197]
[1644593231849,37.67580806,107.2,107.13,34.81504197]
[1644593232050,0.03823015,107.2,107.14,13.48]
[1644593232252,0.03823015,107.24,107.14,44.96386791]
[1644593232451,1.73,107.24,107.15,33.33220416]
[1644593232655,0.03823015,107.23,107.16,13.9992]
[1644593232951,37.24427366,107.22,107.16,13.48]
[1644593233153,1.698,107.21,107.16,13.48]
[1644593233354,1.698,107.21,107.14,36.5802]
[1644593233551,1.698,107.21,107.14,13.48]
[1644593233751,15.6994,107.21,107.11,4.665]
[1644593233952,0.03823015,107.2,107.11,18.145]
[1644593234154,1.687,107.19,107.09,38.3714]
[1644593234352,1.72523015,107.19,107.1,4.666]
[1644593234551,0.03823015,107.19,107.11,13.48]
[1644593234752,45.25668432,107.18,107.12,37.75603469]
[1644593234952,43.59168432,107.18,107.12,51.23603469]
[1644593235153,43.59168432,107.18,107.12,65.24033469]
[1644593235551,43.59168432,107.18,107.12,51.23603469]
[1644593235954,0.03823015,107.19,107.12,51.23603469]
[1644593236152,0.03823015,107.2,107.12,53.6197026]
[1644593236352,0.03823015,107.2,107.13,4.665]
[1644593236557,14.0036,107.19,107.13,18.6682]
[1644593236952,36.12253112,107.18,107.13,4.665]
[1644593237152,36.12253112,107.18,107.12,40.1397026]
[1644593237354,36.12253112,107.18,107.12,40.3897026]
[1644593238155,36.12253112,107.18,107.12,67.8738026]
[1644593239655,36.12253112,107.18,107.12,67.6238026]
[1644593240854,14.04183015,107.19,107.12,67.8738026]
[1644593241053,87.9451,107.27,107.12,85.25424389]
[1644593241054,1.76523015,107.2,107.12,85.25424389]
[1644593241255,1.76623015,107.23,107.16,13.9992]
[1644593241457,0.03823015,107.2,107.16,13.9992]
[1644593241655,48.11083015,107.24,107.16,13.9992]
[1644593241854,49.68140556,107.23,107.17,47.83757173]
[1644593242059,63.67970556,107.23,107.17,47.83757173]
[1644593242854,57.67970556,107.23,107.17,47.83757173]
[1644593243263,1.715,107.22,107.17,47.83757173]
[1644593243460,15.7149,107.22,107.16,13.9992]
[1644593243656,15.7149,107.22,107.16,0.25]
[1644593244458,15.7149,107.22,107.16,47.98838556]
[1644593245862,15.7149,107.22,107.15,13.48]
[1644593246260,6.0,107.21,107.13,67.9998]
[1644593246471,14.0046,107.19,107.13,19.48]
[1644593246967,47.60921896,107.18,107.13,19.48]
[1644593247668,14.0046,107.19,107.13,19.48]
[1644593247869,14.0046,107.19,107.13,26.77866791]
[1644593248270,0.03823015,107.2,107.13,40.78156791]
[1644593248471,0.03823015,107.21,107.14,23.699]
[1644593248669,38.49365413,107.22,107.15,13.48]
[1644593248868,38.45542398,107.22,107.15,13.48]
[1644593249569,14.0007,107.21,107.15,13.48]
[1644593249769,1.714,107.2,107.15,13.48]
[1644593249970,38.45542398,107.22,107.15,13.48]
[1644593250172,38.45542398,107.22,107.16,41.71581969]
[1644593250372,36.74142398,107.22,107.16,4.664]
[1644593250672,1.714,107.21,107.16,4.664]
[1644593250872,36.74142398,107.22,107.15,4.664]
[1644593251075,36.77965413,107.22,107.15,4.664]
[1644593251292,36.74142398,107.22,107.15,4.664]
[1644593251693,14.0021,107.2,107.15,4.664]
[1644593252291,1.714,107.19,107.15,4.664]
[1644593252492,6.0,107.19,107.15,4.664]
[1644593252695,1.714,107.18,107.15,4.664]
[1644593252892,54.433,107.21,107.13,6.0]
[1644593253192,54.433,107.21,107.1,14.80236996]
[1644593253193,14.0047,107.18,107.1,14.80236996]
[1644593253392,1.713,107.17,107.1,14.80236996]
[1644593253596,1.713,107.17,107.1,15.05236996]
[1644593253794,1.75147895,107.17,107.1,13.73]
[1644593253994,0.03847895,107.17,107.1,18.397]
[1644593254195,46.41188393,107.16,107.1,18.147]
[1644593254396,48.12688393,107.16,107.1,13.48]
[1644593254795,48.12688393,107.16,107.09,7.05066791]
[1644593254997,48.12688393,107.16,107.08,53.70384942]
[1644593255598,14.009,107.15,107.08,67.96334942]
[1644593255997,24.50260783,107.2,107.09,6.0]
[1644593255998,0.03847895,107.16,107.09,6.0]
[1644593256300,0.03847895,107.19,107.11,1.32236996]
[1644593256500,0.03847895,107.19,107.1,87.31239561]
[1644593256501,0.03847895,107.19,107.12,19.46736996]
[1644593256699,14.03907895,107.21,107.15,14.0006]
[1644593256897,1.715,107.2,107.15,14.0006]
[1644593257097,1.715,107.2,107.15,14.2506]
[1644593257297,1.715,107.2,107.14,57.86036918]
[1644593257799,1.715,107.2,107.14,13.48]
[1644593258502,35.63891865,107.21,107.14,13.48]
[1644593258699,14.002,107.2,107.14,27.482]
[1644593259402,14.002,107.2,107.14,13.48]
[1644593260002,1.714,107.19,107.14,13.48]
[1644593260201,15.7176,107.19,107.14,13.48]
[1644593260400,15.7176,107.19,107.11,5.98836996]
[1644593260604,15.75607895,107.19,107.1,1.32236996]
[1644593260802,46.72,107.18,107.09,96.83342807]
[1644593261003,47.48318129,107.16,107.09,137.90712807]
[1644593261302,47.48318129,107.16,107.09,115.82869598]
[1644593261507,47.48318129,107.16,107.09,108.77902807]
[1644593262406,47.48318129,107.16,107.09,109.02902807]
[1644593262604,61.49138129,107.16,107.09,123.03732807]
[1644593262804,1.736,107.15,107.09,123.03732807]
[1644593263302,1.736,107.15,107.09,121.71495811]
[1644593263505,61.52986024,107.16,107.1,4.667]
[1644593263802,61.49138129,107.16,107.1,4.667]
[1644593264002,1.714,107.15,107.09,121.71495811]
[1644593264207,63.23286024,107.16,107.09,121.71495811]
[1644593264405,1.703,107.16,107.1,4.667]
[1644593264603,14.04427895,107.17,107.11,14.0055]
[1644593264807,15.6868,107.17,107.11,14.2555]
[1644593265003,15.6868,107.17,107.11,27.7355]
[1644593265405,47.69020708,107.16,107.11,27.7355]
[1644593265804,47.69020708,107.16,107.11,27.4855]
[1644593266205,14.04427895,107.17,107.11,27.4855]
[1644593266405,14.0058,107.17,107.11,27.4855]
[1644593266605,14.0058,107.17,107.11,13.48]
[1644593267103,35.17353752,107.16,107.11,13.48]
[1644593267305,1.747,107.15,107.11,13.48]
[1644593268306,1.747,107.15,107.11,27.7356]
[1644593269105,1.747,107.15,107.11,29.05796996]
[1644593269507,1.747,107.15,107.11,28.80796996]
[1644593269708,1.747,107.15,107.11,27.4856]
[1644593269908,39.08674435,107.16,107.11,27.4856]
[1644593271410,14.04407895,107.17,107.11,27.4856]
[1644593271610,14.0056,107.17,107.12,4.667]
[1644593271811,0.03847895,107.18,107.13,13.48]
[1644593272007,0.03847895,107.2,107.14,4.666]
[1644593272209,0.03847895,107.21,107.15,40.67969427]
[1644593272408,1.78647895,107.22,107.15,40.67969427]
[1644593272607,1.748,107.22,107.15,40.92969427]
[1644593273610,15.7472,107.22,107.14,18.146]
[1644593273809,15.78567895,107.22,107.14,18.146]
[1644593274412,14.31289842,107.21,107.14,18.146]